[Event "Titled Tuesday Blitz November 15 Late 2022"]
[White "Haszon, David"]
[Black "Vlassov, Nikolai"]
[WhiteFideId "733610"]
[BlackFideId "4103360"]
[WhiteElo "2211"]
[BlackElo "2324"]
[Result "1-0"]
[Round "07"]
[TimeControl "180+1"]
[Date "2022.11.16"]
[WhiteClock "0:00:13"]
[BlackClock "0:00:07"]

1. e4 {[%clk 0:03:00]}  Nc6 {[%clk 0:02:59]} 2. Nf3 {[%clk 0:03:00]}  d5 {[%clk 0:02:54]} 3. exd5 {[%clk 0:02:54]}  Qxd5 {[%clk 0:02:54]} 4. Nc3 {[%clk 0:02:53]}  Qa5 {[%clk 0:02:54]} 5. h3 {[%clk 0:02:40]}  Nh6 {[%clk 0:02:26]} 6. Bc4 {[%clk 0:02:36]}  Nf5 {[%clk 0:02:25]} 7. d3 {[%clk 0:02:20]}  Nfd4 {[%clk 0:02:24]} 8. Be3 {[%clk 0:02:13]}  e5 {[%clk 0:02:20]} 9. O-O {[%clk 0:02:00]}  Bb4 {[%clk 0:02:20]} 10. Nd5 {[%clk 0:01:54]}  Be6 {[%clk 0:02:13]} 11. Nxb4 {[%clk 0:01:50]}  Qxb4 {[%clk 0:02:08]} 12. c3 {[%clk 0:01:48]}  Nxf3+ {[%clk 0:02:03]} 13. Qxf3 {[%clk 0:01:49]}  Qd6 {[%clk 0:02:00]} 14. Bxe6 {[%clk 0:01:40]}  Qxe6 {[%clk 0:02:00]} 15. d4 {[%clk 0:01:39]}  e4 {[%clk 0:01:43]} 16. Qg3 {[%clk 0:01:37]}  O-O-O {[%clk 0:01:35]} 17. a4 {[%clk 0:01:32]}  Rdg8 {[%clk 0:01:24]} 18. a5 {[%clk 0:01:31]}  a6 {[%clk 0:01:24]} 19. Rfd1 {[%clk 0:01:28]}  Ne7 {[%clk 0:01:15]} 20. c4 {[%clk 0:01:24]}  g5 {[%clk 0:01:08]} 21. d5 {[%clk 0:01:23]}  Qd6 {[%clk 0:01:05]} 22. Qxd6 {[%clk 0:01:18]}  cxd6 {[%clk 0:01:05]} 23. Bd4 {[%clk 0:01:18]}  f5 {[%clk 0:01:05]} 24. Bxh8 {[%clk 0:01:18]}  Rxh8 {[%clk 0:01:05]} 25. b4 {[%clk 0:01:13]}  Kd7 {[%clk 0:01:04]} 26. Rac1 {[%clk 0:01:13]}  Ng6 {[%clk 0:00:57]} 27. c5 {[%clk 0:01:12]}  Ne5 {[%clk 0:00:49]} 28. Rc3 {[%clk 0:01:02]}  Rc8 {[%clk 0:00:44]} 29. Rd4 {[%clk 0:00:48]}  h5 {[%clk 0:00:35]} 30. Kf1 {[%clk 0:00:24]}  h4 {[%clk 0:00:35]} 31. f3 {[%clk 0:00:22]}  exf3 {[%clk 0:00:28]} 32. gxf3 {[%clk 0:00:23]}  Ng6 {[%clk 0:00:23]} 33. Rdc4 {[%clk 0:00:12]}  Nf4 {[%clk 0:00:18]} 34. Rd4 {[%clk 0:00:13]}  Nxh3 {[%clk 0:00:15]} 35. Rdc4 {[%clk 0:00:13]}  Nf4 {[%clk 0:00:14]} 36. c6+ {[%clk 0:00:12]}  bxc6 {[%clk 0:00:13]} 37. Rxc6 {[%clk 0:00:13]}  Rxc6 {[%clk 0:00:12]} 38. Rxc6 {[%clk 0:00:14]}  Nxd5 {[%clk 0:00:11]} 39. Rxa6 {[%clk 0:00:15]}  Nxb4 {[%clk 0:00:11]} 40. Ra7+ {[%clk 0:00:15]}  Kc6 {[%clk 0:00:11]} 41. Rf7 {[%clk 0:00:15]}  g4 {[%clk 0:00:10]} 42. f4 {[%clk 0:00:14]}  Nc2 {[%clk 0:00:07]} 43. Ke2 {[%clk 0:00:13]} 1-0


[Site "https://www.chess.com"]

[Event "Titled Tuesday Blitz November 15 Late 2022"]
[White "He, Samuel"]
[Black "Maksimovic, Bojan"]
[WhiteFideId "2087235"]
[BlackFideId "14408120"]
[WhiteElo "2621"]
[BlackElo "2447"]
[Result "0-1"]
[Round "07"]
[TimeControl "180+1"]
[Date "2022.11.15"]
[WhiteClock "0:01:07"]
[BlackClock "0:02:25"]

1. Nf3 {[%clk 0:03:00]}  g6 {[%clk 0:02:58]} 2. e4 {[%clk 0:03:00]}  Bg7 {[%clk 0:02:59]} 3. d4 {[%clk 0:03:01]}  d6 {[%clk 0:03:00]} 4. c3 {[%clk 0:02:59]}  Nf6 {[%clk 0:02:59]} 5. Bd3 {[%clk 0:02:59]}  Nc6 {[%clk 0:03:00]} 6. O-O {[%clk 0:02:59]}  O-O {[%clk 0:03:00]} 7. d5 {[%clk 0:02:59]}  Nb8 {[%clk 0:02:59]} 8. h3 {[%clk 0:02:59]}  c6 {[%clk 0:02:59]} 9. c4 {[%clk 0:02:58]}  Na6 {[%clk 0:02:59]} 10. Nc3 {[%clk 0:02:58]}  Bd7 {[%clk 0:02:59]} 11. Re1 {[%clk 0:02:57]}  e5 {[%clk 0:02:56]} 12. dxe6 {[%clk 0:02:56]}  Bxe6 {[%clk 0:02:56]} 13. Nd4 {[%clk 0:02:53]}  Nc5 {[%clk 0:02:55]} 14. Nxe6 {[%clk 0:02:40]}  fxe6 {[%clk 0:02:55]} 15. Bf1 {[%clk 0:02:24]}  a5 {[%clk 0:02:54]} 16. e5 {[%clk 0:02:20]}  dxe5 {[%clk 0:02:53]} 17. Qxd8 {[%clk 0:02:19]}  Raxd8 {[%clk 0:02:52]} 18. Rxe5 {[%clk 0:02:19]}  Nd5 {[%clk 0:02:52]} 19. Rg5 {[%clk 0:02:05]}  Nxc3 {[%clk 0:02:42]} 20. Rxc5 {[%clk 0:01:52]}  Bd4 {[%clk 0:02:42]} 21. Rg5 {[%clk 0:01:36]}  Bxf2+ {[%clk 0:02:40]} 22. Kh2 {[%clk 0:01:36]}  Ne4 {[%clk 0:02:29]} 23. Rg4 {[%clk 0:01:29]}  Bg3+ {[%clk 0:02:26]} 24. Kg1 {[%clk 0:01:07]}  Rd1 {[%clk 0:02:25]} 0-1


[Site "https://www.chess.com"]

[Event "Titled Tuesday Blitz November 15 Late 2022"]
[White "Hristodoulou, Panagiotis"]
[Black "Bluebaum, Matthias"]
[WhiteFideId "4214340"]
[BlackFideId "24651516"]
[WhiteElo "2272"]
[BlackElo "2633"]
[Result "0-1"]
[Round "07"]
[TimeControl "180+1"]
[Date "2022.11.15"]
[WhiteClock "0:00:01"]
[BlackClock "0:00:05"]

1. e4 {[%clk 0:02:59]}  e6 {[%clk 0:02:59]} 2. d4 {[%clk 0:02:58]}  d5 {[%clk 0:03:00]} 3. Nc3 {[%clk 0:02:57]}  Nf6 {[%clk 0:03:00]} 4. Bg5 {[%clk 0:02:56]}  dxe4 {[%clk 0:03:00]} 5. Nxe4 {[%clk 0:02:56]}  Be7 {[%clk 0:03:01]} 6. Bxf6 {[%clk 0:02:55]}  gxf6 {[%clk 0:03:02]} 7. Nf3 {[%clk 0:02:52]}  f5 {[%clk 0:03:02]} 8. Nc3 {[%clk 0:02:49]}  a6 {[%clk 0:03:03]} 9. g3 {[%clk 0:02:48]}  b5 {[%clk 0:03:03]} 10. Bg2 {[%clk 0:02:49]}  Bb7 {[%clk 0:03:04]} 11. O-O {[%clk 0:02:49]}  O-O {[%clk 0:03:04]} 12. Ne5 {[%clk 0:02:49]}  Bxg2 {[%clk 0:03:05]} 13. Kxg2 {[%clk 0:02:50]}  b4 {[%clk 0:03:06]} 14. Ne2 {[%clk 0:02:46]}  Nc6 {[%clk 0:02:51]} 15. Nxc6 {[%clk 0:02:44]}  Qd5+ {[%clk 0:02:50]} 16. Kg1 {[%clk 0:02:44]}  Qxc6 {[%clk 0:02:51]} 17. Qd3 {[%clk 0:02:43]}  Rfd8 {[%clk 0:02:49]} 18. Rfd1 {[%clk 0:02:43]}  Bf6 {[%clk 0:02:49]} 19. Rac1 {[%clk 0:02:41]}  Qa4 {[%clk 0:02:46]} 20. b3 {[%clk 0:02:37]}  Qb5 {[%clk 0:02:43]} 21. Qe3 {[%clk 0:02:25]}  Rd6 {[%clk 0:02:42]} 22. Rd3 {[%clk 0:02:13]}  Rad8 {[%clk 0:02:39]} 23. Rcd1 {[%clk 0:02:13]}  Qa5 {[%clk 0:02:33]} 24. Nf4 {[%clk 0:02:05]}  Bg5 {[%clk 0:02:13]} 25. Qe5 {[%clk 0:02:04]}  Qxe5 {[%clk 0:01:41]} 26. dxe5 {[%clk 0:02:05]}  Rxd3 {[%clk 0:01:41]} 27. Rxd3 {[%clk 0:01:59]}  Rb8 {[%clk 0:01:42]} 28. Rd7 {[%clk 0:01:47]}  Bd8 {[%clk 0:01:16]} 29. Nd3 {[%clk 0:01:45]}  a5 {[%clk 0:01:14]} 30. Kf1 {[%clk 0:01:42]}  Kf8 {[%clk 0:01:14]} 31. Rd4 {[%clk 0:01:38]}  Ke8 {[%clk 0:01:11]} 32. Ke2 {[%clk 0:01:36]}  Rb5 {[%clk 0:01:09]} 33. Rc4 {[%clk 0:01:35]}  Kd7 {[%clk 0:01:02]} 34. f4 {[%clk 0:01:28]}  Be7 {[%clk 0:01:03]} 35. Rd4+ {[%clk 0:01:24]}  Kc8 {[%clk 0:01:00]} 36. Nb2 {[%clk 0:01:23]}  Rc5 {[%clk 0:00:47]} 37. Nc4 {[%clk 0:01:22]}  a4 {[%clk 0:00:42]} 38. Rd1 {[%clk 0:01:17]}  Rc6 {[%clk 0:00:39]} 39. Kf3 {[%clk 0:01:09]}  Ra6 {[%clk 0:00:31]} 40. g4 {[%clk 0:01:06]}  fxg4+ {[%clk 0:00:28]} 41. Kxg4 {[%clk 0:01:07]}  axb3 {[%clk 0:00:28]} 42. axb3 {[%clk 0:01:06]}  Ra2 {[%clk 0:00:28]} 43. Rd2 {[%clk 0:01:03]}  Ra1 {[%clk 0:00:28]} 44. Rf2 {[%clk 0:00:45]}  Bc5 {[%clk 0:00:28]} 45. Rg2 {[%clk 0:00:34]}  Kb7 {[%clk 0:00:24]} 46. Nd2 {[%clk 0:00:26]}  Be3 {[%clk 0:00:20]} 47. Nf3 {[%clk 0:00:22]}  Rf1 {[%clk 0:00:19]} 48. Re2 {[%clk 0:00:20]}  Bc1 {[%clk 0:00:19]} 49. Re1 {[%clk 0:00:13]}  Rxe1 {[%clk 0:00:19]} 50. Nxe1 {[%clk 0:00:14]}  Kc6 {[%clk 0:00:20]} 51. Nd3 {[%clk 0:00:07]}  Bd2 {[%clk 0:00:20]} 52. f5 {[%clk 0:00:07]}  Kd5 {[%clk 0:00:20]} 53. fxe6 {[%clk 0:00:08]}  fxe6 {[%clk 0:00:21]} 54. Kh5 {[%clk 0:00:06]}  Kd4 {[%clk 0:00:16]} 55. Kg4 {[%clk 0:00:05]}  Kc3 {[%clk 0:00:16]} 56. Nc5 {[%clk 0:00:05]}  Kxc2 {[%clk 0:00:16]} 57. Nxe6 {[%clk 0:00:06]}  Kxb3 {[%clk 0:00:15]} 58. Nxc7 {[%clk 0:00:07]}  Kc4 {[%clk 0:00:06]} 59. e6 {[%clk 0:00:07]}  b3 {[%clk 0:00:05]} 60. e7 {[%clk 0:00:06]}  b2 {[%clk 0:00:06]} 61. e8=Q {[%clk 0:00:06]}  b1=Q {[%clk 0:00:07]} 62. Qc6+ {[%clk 0:00:04]}  Kd4 {[%clk 0:00:08]} 63. Nb5+ {[%clk 0:00:03]}  Ke3 {[%clk 0:00:08]} 64. Qe6+ {[%clk 0:00:02]}  Kf2 {[%clk 0:00:08]} 65. Nd4 {[%clk 0:00:01]}  Qd1+ {[%clk 0:00:06]} 66. Kh3 {[%clk 0:00:01]}  Qh5# {[%clk 0:00:05]} 0-1


[Site "https://www.chess.com"]

[Event "Titled Tuesday Blitz November 15 Late 2022"]
[White "Indjic, Aleksandar"]
[Black "Madaminov, Mukhiddin"]
[WhiteFideId "911925"]
[BlackFideId "14210703"]
[WhiteElo "2592"]
[BlackElo "2341"]
[Result "0-1"]
[Round "07"]
[TimeControl "180+1"]
[Date "2022.11.15"]
[WhiteClock "0:00:14"]
[BlackClock "0:00:07"]

1. d4 {[%clk 0:02:57]}  Nf6 {[%clk 0:02:59]} 2. c4 {[%clk 0:02:57]}  g6 {[%clk 0:03:00]} 3. Nc3 {[%clk 0:02:57]}  d5 {[%clk 0:03:01]} 4. Nf3 {[%clk 0:02:58]}  Bg7 {[%clk 0:03:01]} 5. h4 {[%clk 0:02:58]}  dxc4 {[%clk 0:02:57]} 6. e4 {[%clk 0:02:58]}  c5 {[%clk 0:02:58]} 7. d5 {[%clk 0:02:58]}  b5 {[%clk 0:02:58]} 8. h5 {[%clk 0:02:58]}  O-O {[%clk 0:02:45]} 9. hxg6 {[%clk 0:02:58]}  fxg6 {[%clk 0:02:45]} 10. e5 {[%clk 0:02:58]}  Ng4 {[%clk 0:02:43]} 11. d6 {[%clk 0:02:59]}  e6 {[%clk 0:02:43]} 12. Rxh7 {[%clk 0:02:58]}  Rf5 {[%clk 0:02:44]} 13. Ne4 {[%clk 0:02:58]}  Nd7 {[%clk 0:02:33]} 14. Bg5 {[%clk 0:02:48]}  Qe8 {[%clk 0:02:31]} 15. Be7 {[%clk 0:02:48]}  Bb7 {[%clk 0:02:23]} 16. Nfg5 {[%clk 0:02:25]}  Ngxe5 {[%clk 0:01:59]} 17. Rxg7+ {[%clk 0:02:23]}  Kxg7 {[%clk 0:02:00]} 18. Nxe6+ {[%clk 0:02:23]}  Kg8 {[%clk 0:02:00]} 19. N4g5 {[%clk 0:02:08]}  Rc8 {[%clk 0:01:52]} 20. f4 {[%clk 0:02:06]}  Nf7 {[%clk 0:01:38]} 21. Qg4 {[%clk 0:02:05]}  Nxg5 {[%clk 0:01:33]} 22. Nxg5 {[%clk 0:02:04]}  Nf6 {[%clk 0:01:22]} 23. Qh3 {[%clk 0:02:04]}  Rc7 {[%clk 0:01:14]} 24. Qe3 {[%clk 0:01:54]}  Rxe7 {[%clk 0:01:06]} 25. dxe7 {[%clk 0:01:55]}  Nd5 {[%clk 0:01:05]} 26. Qe6+ {[%clk 0:01:55]}  Kg7 {[%clk 0:01:06]} 27. O-O-O {[%clk 0:01:42]}  Bc8 {[%clk 0:00:57]} 28. Qd6 {[%clk 0:01:20]}  Qxe7 {[%clk 0:00:31]} 29. Rxd5 {[%clk 0:01:19]}  Qe3+ {[%clk 0:00:30]} 30. Rd2 {[%clk 0:01:10]}  Rxf4 {[%clk 0:00:29]} 31. Qc7+ {[%clk 0:01:09]}  Kh6 {[%clk 0:00:28]} 32. Nf7+ {[%clk 0:00:55]}  Rxf7 {[%clk 0:00:27]} 33. Qxf7 {[%clk 0:00:54]}  Bf5 {[%clk 0:00:19]} 34. Qf8+ {[%clk 0:00:49]}  Kh7 {[%clk 0:00:17]} 35. Qd6 {[%clk 0:00:35]}  Bg4 {[%clk 0:00:11]} 36. a4 {[%clk 0:00:16]}  c3 {[%clk 0:00:07]} 37. bxc3 {[%clk 0:00:14]}  Qxc3+ {[%clk 0:00:07]} 38. Rc2 {[%clk 0:00:13]}  Qa1+ {[%clk 0:00:05]} 39. Kd2 {[%clk 0:00:14]}  Qd1+ {[%clk 0:00:06]} 40. Ke3 {[%clk 0:00:14]}  Qxd6 {[%clk 0:00:07]} 41. Bxb5 {[%clk 0:00:14]}  Qd4# {[%clk 0:00:07]} 0-1


[Site "https://www.chess.com"]

[Event "Titled Tuesday Blitz November 15 Late 2022"]
[White "Ivic, Velimir"]
[Black "Pranav, V"]
[WhiteFideId "950122"]
[BlackFideId "25060783"]
[WhiteElo "2625"]
[BlackElo "2430"]
[Result "0-1"]
[Round "07"]
[TimeControl "180+1"]
[Date "2022.11.15"]
[WhiteClock "0:00:06"]
[BlackClock "0:00:26"]

1. d4 {[%clk 0:03:00]}  Nf6 {[%clk 0:03:00]} 2. c4 {[%clk 0:03:01]}  e6 {[%clk 0:03:00]} 3. Nf3 {[%clk 0:03:01]}  Bb4+ {[%clk 0:03:00]} 4. Bd2 {[%clk 0:03:00]}  Qe7 {[%clk 0:03:00]} 5. g3 {[%clk 0:02:59]}  Nc6 {[%clk 0:03:00]} 6. Bg2 {[%clk 0:02:58]}  Bxd2+ {[%clk 0:03:00]} 7. Qxd2 {[%clk 0:02:59]}  Ne4 {[%clk 0:03:00]} 8. Qc2 {[%clk 0:02:57]}  Qb4+ {[%clk 0:03:00]} 9. Nbd2 {[%clk 0:02:37]}  Nxd2 {[%clk 0:02:59]} 10. Qxd2 {[%clk 0:02:38]}  Qxc4 {[%clk 0:03:00]} 11. O-O {[%clk 0:02:35]}  O-O {[%clk 0:02:59]} 12. Rac1 {[%clk 0:02:34]}  Qxa2 {[%clk 0:02:54]} 13. e4 {[%clk 0:02:28]}  d6 {[%clk 0:02:54]} 14. d5 {[%clk 0:02:19]}  exd5 {[%clk 0:02:53]} 15. exd5 {[%clk 0:02:20]}  Ne7 {[%clk 0:02:51]} 16. Nd4 {[%clk 0:02:13]}  Nxd5 {[%clk 0:02:22]} 17. Rfe1 {[%clk 0:01:15]}  c6 {[%clk 0:01:55]} 18. Be4 {[%clk 0:00:49]}  Nf6 {[%clk 0:01:50]} 19. Bg2 {[%clk 0:00:35]}  Qa6 {[%clk 0:01:45]} 20. Re7 {[%clk 0:00:31]}  Bd7 {[%clk 0:01:38]} 21. Nf3 {[%clk 0:00:25]}  Rfe8 {[%clk 0:01:33]} 22. Qxd6 {[%clk 0:00:24]}  Rxe7 {[%clk 0:01:33]} 23. Qxe7 {[%clk 0:00:25]}  Re8 {[%clk 0:01:34]} 24. Qd6 {[%clk 0:00:26]}  Qb6 {[%clk 0:01:31]} 25. b4 {[%clk 0:00:19]}  Bf5 {[%clk 0:01:11]} 26. Nd4 {[%clk 0:00:18]}  Rd8 {[%clk 0:01:09]} 27. Qe5 {[%clk 0:00:08]}  Qxd4 {[%clk 0:01:06]} 28. Qxf5 {[%clk 0:00:09]}  Qxb4 {[%clk 0:01:06]} 29. Rb1 {[%clk 0:00:07]}  Qe7 {[%clk 0:01:02]} 30. Qa5 {[%clk 0:00:08]}  b6 {[%clk 0:01:00]} 31. Qa6 {[%clk 0:00:08]}  c5 {[%clk 0:00:54]} 32. Ra1 {[%clk 0:00:09]}  h5 {[%clk 0:00:54]} 33. h4 {[%clk 0:00:09]}  Ng4 {[%clk 0:00:52]} 34. Bf3 {[%clk 0:00:09]}  Nf6 {[%clk 0:00:33]} 35. Kg2 {[%clk 0:00:08]}  g6 {[%clk 0:00:32]} 36. Qxa7 {[%clk 0:00:08]}  Qxa7 {[%clk 0:00:33]} 37. Rxa7 {[%clk 0:00:08]}  Rd6 {[%clk 0:00:33]} 38. Be2 {[%clk 0:00:08]}  Nd7 {[%clk 0:00:30]} 39. Rb7 {[%clk 0:00:06]}  Kf8 {[%clk 0:00:29]} 40. Bb5 {[%clk 0:00:07]}  Ne5 {[%clk 0:00:27]} 41. Rc7 {[%clk 0:00:06]}  Kg7 {[%clk 0:00:26]} 42. Rb7 {[%clk 0:00:04]}  Kf6 {[%clk 0:00:25]} 43. f4 {[%clk 0:00:05]}  Ng4 {[%clk 0:00:25]} 44. Bc4 {[%clk 0:00:06]}  Ne3+ {[%clk 0:00:25]} 45. Kf3 {[%clk 0:00:06]}  Nxc4 {[%clk 0:00:26]} 46. Rxb6 {[%clk 0:00:06]} 0-1


[Site "https://www.chess.com"]

[Event "Titled Tuesday Blitz November 15 Late 2022"]
[White "Jiang, Andrew"]
[Black "Aggelis, Nikolaos"]
[WhiteFideId "30953510"]
[BlackFideId "4213220"]
[WhiteElo "1868"]
[BlackElo "2189"]
[Result "1-0"]
[Round "07"]
[TimeControl "180+1"]
[Date "2022.11.16"]
[WhiteClock "0:00:19"]
[BlackClock "0:00:17"]

1. e4 {[%clk 0:03:00]}  c5 {[%clk 0:02:59]} 2. Nf3 {[%clk 0:03:00]}  Nc6 {[%clk 0:02:57]} 3. d4 {[%clk 0:03:00]}  cxd4 {[%clk 0:02:58]} 4. Nxd4 {[%clk 0:03:00]}  Nf6 {[%clk 0:02:56]} 5. Nc3 {[%clk 0:03:00]}  e5 {[%clk 0:02:57]} 6. Ndb5 {[%clk 0:03:01]}  d6 {[%clk 0:02:57]} 7. Nd5 {[%clk 0:03:01]}  Nxd5 {[%clk 0:02:57]} 8. exd5 {[%clk 0:03:02]}  Nb8 {[%clk 0:02:58]} 9. c4 {[%clk 0:03:02]}  Be7 {[%clk 0:02:56]} 10. Be2 {[%clk 0:03:00]}  O-O {[%clk 0:02:56]} 11. O-O {[%clk 0:02:58]}  a6 {[%clk 0:02:55]} 12. Nc3 {[%clk 0:02:56]}  f5 {[%clk 0:02:55]} 13. f3 {[%clk 0:02:55]}  Nd7 {[%clk 0:02:53]} 14. Be3 {[%clk 0:02:55]}  Bg5 {[%clk 0:02:48]} 15. Qd2 {[%clk 0:02:45]}  Bxe3+ {[%clk 0:02:46]} 16. Qxe3 {[%clk 0:02:45]}  Qh4 {[%clk 0:02:27]} 17. f4 {[%clk 0:02:38]}  Re8 {[%clk 0:02:11]} 18. fxe5 {[%clk 0:02:09]}  Nxe5 {[%clk 0:02:06]} 19. Rf4 {[%clk 0:02:09]}  Qh6 {[%clk 0:02:00]} 20. Qd4 {[%clk 0:02:06]}  g5 {[%clk 0:01:54]} 21. Rf2 {[%clk 0:02:04]}  f4 {[%clk 0:01:47]} 22. Raf1 {[%clk 0:02:00]}  Bf5 {[%clk 0:01:39]} 23. c5 {[%clk 0:01:56]}  dxc5 {[%clk 0:01:31]} 24. Qxc5 {[%clk 0:01:57]}  Rad8 {[%clk 0:01:29]} 25. Rd1 {[%clk 0:01:36]}  g4 {[%clk 0:01:19]} 26. Qd4 {[%clk 0:01:14]}  Ng6 {[%clk 0:00:58]} 27. d6 {[%clk 0:00:53]}  Qg7 {[%clk 0:00:56]} 28. Bc4+ {[%clk 0:00:46]}  Kh8 {[%clk 0:00:53]} 29. Qxg7+ {[%clk 0:00:45]}  Kxg7 {[%clk 0:00:51]} 30. Rfd2 {[%clk 0:00:46]}  b5 {[%clk 0:00:42]} 31. Bb3 {[%clk 0:00:45]}  Ne5 {[%clk 0:00:38]} 32. Rd5 {[%clk 0:00:41]}  f3 {[%clk 0:00:37]} 33. gxf3 {[%clk 0:00:40]}  Nxf3+ {[%clk 0:00:37]} 34. Kf2 {[%clk 0:00:41]}  Be6 {[%clk 0:00:34]} 35. R5d3 {[%clk 0:00:40]}  Bxb3 {[%clk 0:00:34]} 36. axb3 {[%clk 0:00:41]}  Rf8 {[%clk 0:00:34]} 37. Kg3 {[%clk 0:00:40]}  h5 {[%clk 0:00:34]} 38. Ne4 {[%clk 0:00:35]}  h4+ {[%clk 0:00:32]} 39. Kxg4 {[%clk 0:00:29]}  Ne5+ {[%clk 0:00:31]} 40. Kh3 {[%clk 0:00:24]}  Nxd3 {[%clk 0:00:31]} 41. Rxd3 {[%clk 0:00:25]}  Rf4 {[%clk 0:00:27]} 42. Nc5 {[%clk 0:00:25]}  Kf6 {[%clk 0:00:22]} 43. Nb7 {[%clk 0:00:22]}  Rd7 {[%clk 0:00:19]} 44. Nc5 {[%clk 0:00:22]}  Rd8 {[%clk 0:00:19]} 45. Nb7 {[%clk 0:00:17]}  Rb8 {[%clk 0:00:15]} 46. d7 {[%clk 0:00:17]}  Ke7 {[%clk 0:00:13]} 47. d8=Q+ {[%clk 0:00:17]}  Rxd8 {[%clk 0:00:14]} 48. Nxd8 {[%clk 0:00:18]}  Rb4 {[%clk 0:00:13]} 49. Nc6+ {[%clk 0:00:18]}  Ke6 {[%clk 0:00:13]} 50. Nxb4 {[%clk 0:00:19]}  Ke5 {[%clk 0:00:14]} 51. Kxh4 {[%clk 0:00:18]}  Ke4 {[%clk 0:00:15]} 52. Rc3 {[%clk 0:00:18]}  Kd4 {[%clk 0:00:15]} 53. Nc6+ {[%clk 0:00:19]}  Kd5 {[%clk 0:00:15]} 54. Kg5 {[%clk 0:00:18]}  a5 {[%clk 0:00:16]} 55. Nxa5 {[%clk 0:00:18]}  b4 {[%clk 0:00:16]} 56. Rc4 {[%clk 0:00:18]}  Kd6 {[%clk 0:00:16]} 57. h4 {[%clk 0:00:19]}  Ke6 {[%clk 0:00:16]} 58. h5 {[%clk 0:00:20]}  Kf7 {[%clk 0:00:17]} 59. h6 {[%clk 0:00:21]}  Kg8 {[%clk 0:00:17]} 60. Kg6 {[%clk 0:00:20]}  Kh8 {[%clk 0:00:17]} 61. Rc8# {[%clk 0:00:19]} 1-0


[Site "https://www.chess.com"]

[Event "Titled Tuesday Blitz November 15 Late 2022"]
[White "Jimenez Almeida, Luis David"]
[Black "Nugumanov, Bakhtiyar"]
[WhiteFideId "22242244"]
[BlackFideId "13701797"]
[WhiteElo "2158"]
[BlackElo "2287"]
[Result "1-0"]
[Round "07"]
[TimeControl "180+1"]
[Date "2022.11.16"]
[WhiteClock "0:00:10"]
[BlackClock "0:00:02"]

1. e4 {[%clk 0:03:00]}  c6 {[%clk 0:03:00]} 2. Nc3 {[%clk 0:03:00]}  d5 {[%clk 0:03:00]} 3. Qf3 {[%clk 0:03:00]}  dxe4 {[%clk 0:02:42]} 4. Nxe4 {[%clk 0:03:01]}  Nf6 {[%clk 0:02:42]} 5. Bc4 {[%clk 0:03:00]}  Nbd7 {[%clk 0:02:23]} 6. d4 {[%clk 0:02:37]}  e5 {[%clk 0:01:35]} 7. Ng5 {[%clk 0:02:26]}  Bb4+ {[%clk 0:01:06]} 8. c3 {[%clk 0:02:24]}  O-O {[%clk 0:01:06]} 9. cxb4 {[%clk 0:02:22]}  e4 {[%clk 0:01:07]} 10. Qe2 {[%clk 0:02:17]}  Qe7 {[%clk 0:01:02]} 11. Bd2 {[%clk 0:02:10]}  Nb6 {[%clk 0:00:33]} 12. Bb3 {[%clk 0:01:44]}  h6 {[%clk 0:00:33]} 13. N5h3 {[%clk 0:01:40]}  Be6 {[%clk 0:00:32]} 14. Bxe6 {[%clk 0:01:33]}  Qxe6 {[%clk 0:00:33]} 15. Nf4 {[%clk 0:01:32]}  Qf5 {[%clk 0:00:30]} 16. Ngh3 {[%clk 0:01:28]}  g5 {[%clk 0:00:22]} 17. Nh5 {[%clk 0:01:26]}  Rae8 {[%clk 0:00:16]} 18. Nxf6+ {[%clk 0:01:15]}  Qxf6 {[%clk 0:00:17]} 19. Be3 {[%clk 0:01:15]}  Nd5 {[%clk 0:00:15]} 20. a3 {[%clk 0:01:14]}  Qf5 {[%clk 0:00:14]} 21. Qh5 {[%clk 0:01:05]}  Kg7 {[%clk 0:00:12]} 22. O-O {[%clk 0:00:57]}  f6 {[%clk 0:00:07]} 23. Rac1 {[%clk 0:00:55]}  Qe6 {[%clk 0:00:04]} 24. Bd2 {[%clk 0:00:41]}  f5 {[%clk 0:00:04]} 25. Rfe1 {[%clk 0:00:20]}  f4 {[%clk 0:00:03]} 26. Rc5 {[%clk 0:00:18]}  g4 {[%clk 0:00:03]} 27. Nxf4 {[%clk 0:00:16]}  Nxf4 {[%clk 0:00:03]} 28. Bxf4 {[%clk 0:00:16]}  Rxf4 {[%clk 0:00:04]} 29. Re5 {[%clk 0:00:10]}  Qg6 {[%clk 0:00:02]} 30. Qxg6+ {[%clk 0:00:10]} 1-0


[Site "https://www.chess.com"]

[Event "Titled Tuesday Blitz November 15 Late 2022"]
[White "Jones, Gawain C B"]
[Black "Makridis, Dimitrios"]
[WhiteFideId "409561"]
[BlackFideId "25864475"]
[WhiteElo "2657"]
[BlackElo "2272"]
[Result "1-0"]
[Round "07"]
[TimeControl "180+1"]
[Date "2022.11.15"]
[WhiteClock "0:00:14"]
[BlackClock "0:00:07"]

1. e4 {[%clk 0:02:59]}  c5 {[%clk 0:02:58]} 2. c3 {[%clk 0:02:59]}  Nf6 {[%clk 0:02:57]} 3. e5 {[%clk 0:02:58]}  Nd5 {[%clk 0:02:57]} 4. Bc4 {[%clk 0:02:57]}  e6 {[%clk 0:02:57]} 5. Nf3 {[%clk 0:02:56]}  Nc6 {[%clk 0:02:57]} 6. d4 {[%clk 0:02:56]}  cxd4 {[%clk 0:02:58]} 7. cxd4 {[%clk 0:02:56]}  d6 {[%clk 0:02:58]} 8. O-O {[%clk 0:02:56]}  Be7 {[%clk 0:02:57]} 9. Nc3 {[%clk 0:02:52]}  Nxc3 {[%clk 0:02:55]} 10. bxc3 {[%clk 0:02:53]}  dxe5 {[%clk 0:02:55]} 11. dxe5 {[%clk 0:02:48]}  Qxd1 {[%clk 0:02:43]} 12. Rxd1 {[%clk 0:02:49]}  Bd7 {[%clk 0:02:44]} 13. Rb1 {[%clk 0:02:41]}  b6 {[%clk 0:02:39]} 14. Bb5 {[%clk 0:02:32]}  Rc8 {[%clk 0:02:15]} 15. Be3 {[%clk 0:02:29]}  Nb8 {[%clk 0:02:08]} 16. Nd4 {[%clk 0:02:15]}  Bxb5 {[%clk 0:02:04]} 17. Nxb5 {[%clk 0:02:14]}  Nc6 {[%clk 0:02:04]} 18. f4 {[%clk 0:02:04]}  h6 {[%clk 0:01:49]} 19. c4 {[%clk 0:01:58]}  g5 {[%clk 0:01:46]} 20. fxg5 {[%clk 0:01:51]}  hxg5 {[%clk 0:01:46]} 21. Nd6+ {[%clk 0:01:43]}  Bxd6 {[%clk 0:01:45]} 22. exd6 {[%clk 0:01:38]}  Kd7 {[%clk 0:01:45]} 23. Bxg5 {[%clk 0:01:38]}  f5 {[%clk 0:01:44]} 24. c5 {[%clk 0:01:36]}  Rb8 {[%clk 0:01:43]} 25. Be3 {[%clk 0:01:29]}  b5 {[%clk 0:01:31]} 26. Rd2 {[%clk 0:01:13]}  Rh4 {[%clk 0:01:26]} 27. g3 {[%clk 0:01:06]}  Rc4 {[%clk 0:01:24]} 28. Rdb2 {[%clk 0:00:59]}  a6 {[%clk 0:01:21]} 29. Rc1 {[%clk 0:00:57]}  Rxc1+ {[%clk 0:01:08]} 30. Bxc1 {[%clk 0:00:57]}  Rg8 {[%clk 0:01:08]} 31. Rf2 {[%clk 0:00:49]}  Ne5 {[%clk 0:01:01]} 32. Re2 {[%clk 0:00:35]}  Nd3 {[%clk 0:00:52]} 33. Rc2 {[%clk 0:00:27]}  Nb4 {[%clk 0:00:45]} 34. Rd2 {[%clk 0:00:20]}  Rg4 {[%clk 0:00:35]} 35. Bb2 {[%clk 0:00:19]}  Rc4 {[%clk 0:00:31]} 36. Rd4 {[%clk 0:00:17]}  Nxa2 {[%clk 0:00:24]} 37. Rxc4 {[%clk 0:00:17]}  bxc4 {[%clk 0:00:25]} 38. h4 {[%clk 0:00:14]}  c3 {[%clk 0:00:24]} 39. Ba3 {[%clk 0:00:14]}  Nb4 {[%clk 0:00:09]} 40. Bxb4 {[%clk 0:00:14]}  c2 {[%clk 0:00:07]} 41. Ba3 {[%clk 0:00:14]} 1-0


[Site "https://www.chess.com"]